fUST/lending_fUST_20250601
["ID","MTS","AMOUNT","RATE_DAILY","PERIOD"]
[363521222,1748749860390,-430.0,0.00019726,2]
[363521223,1748749860399,-430.0,0.00019726,2]
[363521224,1748749860409,-430.0,0.00019726,2]
[363521225,1748749860420,-903.58,0.00019726,2]
[363521226,1748749860430,-430.0,0.00019726,2]
[363521227,1748749860439,-430.0,0.00019726,2]
[363521228,1748749860451,-285.43825,0.00019726,2]
[363521229,1748749860460,-1716.85,0.00019726,2]
[363521230,1748749860470,-285.43825,0.00019726,2]
[363521231,1748749860480,-430.0,0.00019726,2]
[363521232,1748749860495,-719.16,0.00019726,2]
[363521233,1748749860507,-430.0,0.00019726,2]
[363521234,1748749860517,-503.47,0.00019726,2]
[363521235,1748749860528,-430.0,0.00019726,2]
[363521236,1748749860539,-430.0,0.00019726,2]
[363521237,1748749860549,-151.0,0.00019726,2]
[363521238,1748749860559,-430.0,0.00019726,2]
[363521239,1748749860569,-430.0,0.00019726,2]
[363521240,1748749860579,-430.0,0.00019726,2]
[363521241,1748749860590,-674.46,0.00019726,2]
[363521242,1748749860600,-430.0,0.00019726,2]
[363521243,1748749860610,-430.0,0.00019726,2]
[363521244,1748749860620,-430.0,0.00019726,2]
[363521245,1748749860630,-430.0,0.00019726,2]
[363521246,1748749860642,-430.0,0.00019726,2]
[363521247,1748749860652,-894.24,0.00019726,2]
[363521248,1748749860662,-430.0,0.00019726,2]
[363521249,1748749860672,-458.73,0.00019726,2]
[363521250,1748749860682,-430.0,0.00019726,2]
[363521251,1748749860692,-430.0,0.00019726,2]
[363521252,1748749860701,-430.0,0.00019726,2]
[363521253,1748749860711,-1212.28,0.00019726,2]
[363521254,1748749860721,-589.94,0.00019726,2]
[363521255,1748749860731,-430.0,0.00019726,2]
[363521256,1748749860743,-1079.47,0.00019726,2]
[363521257,1748749860753,-430.0,0.00019726,2]
[363521258,1748749860763,-430.0,0.00019726,2]
[363521259,1748749860773,-2132.34,0.00019726,2]
[363521260,1748749860784,-1655.65,0.00019726,2]
[363521261,1748749860793,-488.68,0.00019726,2]
[363521262,1748749860804,-430.0,0.00019726,2]
[363521263,1748749860814,-430.0,0.00019726,2]
[363521264,1748749860824,-868.23,0.00019726,2]
[363521265,1748749860834,-1263.89891524,0.00019797,2]
[363521266,1748749860844,-500.460765,0.000198,2]
[363521267,1748749860855,-500.0,0.000198,2]
[363521268,1748749860865,-152.48778702,0.000198,2]
[363521269,1748749860875,-500.0,0.000198,2]
[363521270,1748749860885,-305.31020719,0.000198,2]
[363521271,1748749860895,-500.0,0.00019831,2]
[363521272,1748749860904,-505.00855098,0.00019831,2]
[363521273,1748749860915,-500.91748917,0.00019858,2]
[363521274,1748749860924,-177.098169,0.00019875,2]
[363521275,1748749860934,-177.098169,0.00019875,2]
[363521276,1748749860944,-500.0,0.00019918,2]
[363521277,1748749860953,-177.098169,0.0002,2]
[363521278,1748749860963,-177.098169,0.0002,2]
[363521279,1748749860972,-177.098169,0.0002,2]
[363521280,1748749860982,-177.098169,0.0002,2]
[363521281,1748749860993,-151.0,0.0002,2]
[363521282,1748749861002,-151.0,0.0002,2]
[363521283,1748749861012,-151.0,0.0002,2]
[363521284,1748749861022,-151.0,0.0002,2]
[363521285,1748749861031,-151.0,0.0002,2]
[363521286,1748749861041,-151.0,0.0002,2]
[363521287,1748749861051,-151.0,0.0002,2]
[363521288,1748749861060,-256.211935,0.0002,2]
[363521289,1748749861069,-224.123006,0.0002,2]
[363521290,1748749861079,-224.123006,0.0002,2]
[363521291,1748749861088,-224.123006,0.0002,2]
[363521292,1748749861097,-224.123006,0.0002,2]
[363521293,1748749861107,-430.0,0.0002,2]
[363521294,1748749861117,-430.0,0.0002,2]
[363521295,1748749861127,-250.018405,0.0002,2]
[363521296,1748749861136,-250.018405,0.0002,2]
[363521297,1748749861146,-250.018405,0.0002,2]
[363521298,1748749861155,-250.018405,0.0002,2]
[363521299,1748749861165,-430.0,0.0002,2]
[363521300,1748749861175,-903.58,0.0002,2]
[363521301,1748749861185,-430.0,0.0002,2]
[363521302,1748749861195,-430.0,0.0002,2]
[363521303,1748749861204,-1716.85,0.0002,2]
[363521304,1748749861214,-430.0,0.0002,2]
[363521305,1748749861223,-719.16,0.0002,2]
[363521306,1748749861233,-430.0,0.0002,2]
[363521307,1748749861245,-503.47,0.0002,2]
[363521308,1748749861257,-430.0,0.0002,2]
[363521309,1748749861267,-430.0,0.0002,2]
[363521310,1748749861276,-430.0,0.0002,2]
[363521311,1748749861285,-430.0,0.0002,2]
[363521312,1748749861294,-674.46,0.0002,2]
[363521313,1748749861304,-430.0,0.0002,2]
[363521314,1748749861314,-430.0,0.0002,2]
[363521315,1748749861323,-548.38942035,0.0002,2]
[363521316,1748749861332,-430.0,0.0002,2]
[363521317,1748749861343,-430.0,0.0002,2]
[363521318,1748749861352,-430.0,0.0002,2]
[363521319,1748749861361,-894.24,0.0002,2]
[363521320,1748749861372,-430.0,0.0002,2]
[363521321,1748749861381,-458.73,0.0002,2]
[363521322,1748749861391,-430.0,0.0002,2]
[363521323,1748749861400,-430.0,0.0002,2]
[363521324,1748749861409,-430.0,0.0002,2]
[363521325,1748749861419,-1212.28,0.0002,2]
[363521326,1748749861429,-589.94,0.0002,2]
[363521327,1748749861439,-430.0,0.0002,2]
[363521328,1748749861449,-1079.47,0.0002,2]
[363521329,1748749861459,-430.0,0.0002,2]
[363521330,1748749861469,-430.0,0.0002,2]
[363521331,1748749861479,-2132.34,0.0002,2]
[363521332,1748749861489,-1655.65,0.0002,2]
[363521333,1748749861499,-488.68,0.0002,2]
[363521334,1748749861509,-430.0,0.0002,2]
[363521335,1748749861519,-430.0,0.0002,2]
[363521336,1748749861528,-868.23,0.0002,2]
[363521337,1748749861538,-1263.89891524,0.00020038,2]
[363521338,1748749861548,-968.59691539,0.00020173,2]
[363521339,1748749861695,-1661.35489687,0.00020173,2]
[363521340,1748749861705,-656.871177,0.00020187,2]
[363521341,1748749861716,-500.0,0.0002026,2]
[363521342,1748749861728,-500.0,0.00020273,2]
[363521343,1748749861739,-542.46,0.00020273,2]
[363521344,1748749861749,-151.0,0.00020273,2]
[363521345,1748749861758,-505.56491729,0.00020273,2]
[363521346,1748749861768,-725.19119689,0.00020273,2]
[363521347,1748749861782,-178.38880311,0.00020273,2]
[363521348,1748749861791,-430.0,0.00020273,2]
[363521349,1748749861801,-430.0,0.00020273,2]
[363521350,1748749861899,-707.59536157,0.00020273,2]
[363521351,1748749861912,-1009.25463843,0.00020273,2]
[363521352,1748749861922,-430.0,0.00020273,2]
[363521353,1748749861933,-719.16,0.00020273,2]
[363521354,1748749861943,-430.0,0.00020273,2]
[363521355,1748749861953,-503.47,0.00020273,2]
[363521356,1748749861963,-430.0,0.00020273,2]
[363521357,1748749861972,-430.0,0.00020273,2]
[363521358,1748749861983,-430.0,0.00020273,2]
[363521359,1748749861993,-430.0,0.00020273,2]
[363521360,1748749862003,-674.46,0.00020273,2]
[363521361,1748749862013,-430.0,0.00020273,2]
[363521362,1748749862023,-217.12818888,0.00020273,2]
[363521363,1748749862122,-257.3663636,0.00016438,2]
[363521364,1748749862138,-172.6336364,0.00016438,2]
[363521365,1748749862148,-453.57193336,0.00017808,2]
[363521366,1748749862160,-248.67806664,0.00017808,2]
[363521367,1748749862170,-702.25,0.00018082,2]
[363521368,1748749862180,-702.25,0.00018356,2]
[363521369,1748749862189,-702.25,0.0001863,2]
[363521370,1748749862201,-702.25,0.00018904,2]
[363521371,1748749862210,-702.25,0.00019178,2]
[363521372,1748749862220,-702.25,0.00019452,2]
[363521373,1748749862231,-702.25,0.00019726,2]
[363521374,1748749862243,-702.25,0.0002,2]
[363521375,1748749862254,-212.87181112,0.00020273,2]
[363521376,1748749862268,-430.0,0.00020273,2]
[363521377,1748749862278,-430.0,0.00020273,2]
[363521378,1748749862287,-430.0,0.00020273,2]
[363521379,1748749862299,-894.24,0.00020273,2]
[363521380,1748749862309,-430.0,0.00020273,2]
[363521381,1748749862318,-458.73,0.00020273,2]
[363521382,1748749862328,-430.0,0.00020273,2]
[363521383,1748749862339,-430.0,0.00020273,2]
[363521384,1748749862349,-430.0,0.00020273,2]
[363521385,1748749862359,-1212.28,0.00020273,2]
[363521386,1748749862369,-589.94,0.00020273,2]
[363521387,1748749862381,-430.0,0.00020273,2]
[363521388,1748749862391,-1079.47,0.00020273,2]
[363521389,1748749862402,-430.0,0.00020273,2]
[363521390,1748749862412,-430.0,0.00020273,2]
[363521391,1748749862423,-2132.34,0.00020273,2]
[363521392,1748749862433,-1655.65,0.00020273,2]
[363521393,1748749862443,-488.68,0.00020273,2]
[363521394,1748749862452,-241.72829972,0.00020273,2]
[363521395,1748749862462,-868.23,0.00020273,2]
[363521396,1748749862472,-2920.87,0.00020276,2]
[363521397,1748749862482,-197.256797,0.00020279,2]
[363521398,1748749862494,-197.256797,0.00020279,2]
[363521399,1748749862504,-793.300647,0.00020279,2]
[363521400,1748749862514,-1263.89891524,0.00020279,3]
[363521401,1748749862524,-151.0,0.000203,4]
[363521402,1748749862534,-279.67698767,0.00020323,2]
[363521403,1748749863015,-500.0,0.00016437,2]
[363521404,1748749863026,-500.0,0.00016437,2]
[363521405,1748749863037,-500.0,0.00016437,2]
[363521406,1748749863047,-500.0,0.00016437,2]
[363521407,1748749863058,-350.0,0.00016437,2]
[363521408,1748749863068,-500.0,0.00016437,2]
[363521409,1748749863079,-430.0,0.00016438,2]
[363521410,1748749863090,-430.0,0.00016438,2]
[363521411,1748749863100,-498.06,0.00016438,2]
[363521412,1748749863111,-260.0,0.00016438,2]
[363521413,1748749863121,-300.54687953,0.00016438,2]
[363521414,1748749863132,-430.0,0.00016712,2]
[363521415,1748749863143,-430.0,0.00016986,2]
[363521416,1748749863153,-430.0,0.0001726,2]
[363521417,1748749863163,-430.0,0.00017534,2]
[363521418,1748749863174,-391.42,0.00017808,2]
[363521419,1748749863183,-842.5625,0.00018234,2]
[363521420,1748749863193,-500.0,0.00019178,2]
[363521421,1748749863203,-500.0,0.00019178,2]
[363521422,1748749863212,-500.0,0.00019178,2]
[363521423,1748749863222,-238.80422738,0.00019178,2]
[363521434,1748750097102,5002.118,0.00024649,120]
[363521435,1748750144287,669.003065,0.00013699,2]
[363521437,1748750265999,579.9,0.00024658,120]
[363521439,1748750291551,121258.0177854,0.00024657,120]
[363521451,1748750833107,-3696.42407668,0.0001535,2]
[363521452,1748750833131,-681.65975468,0.00015505,2]
[363521453,1748750844080,-518.34024532,0.00015505,2]
[363521454,1748750844102,-300.0,0.00015505,2]
[363521455,1748750844125,-300.0,0.00015505,2]
[363521456,1748750844148,-1156.04305766,0.00015506,2]
[363521541,1748751032830,-300.0,0.00015505,2]
[363521542,1748751032840,-300.0,0.00015505,2]
[363521544,1748751032849,-300.0,0.00015505,2]
[363521546,1748751032858,-300.0,0.00015505,2]
[363521548,1748751032867,-11938.80711302,0.00015506,2]
[363521627,1748751038576,-5781.87,0.00015506,2]
[363521644,1748751038734,-4099.21652262,0.00015506,2]
[363521646,1748751038744,-196.8516,0.00015712,2]
[363521648,1748751038754,-751.9390399,0.00015986,2]
[363521650,1748751038764,-500.0,0.00016437,2]
[363521652,1748751038773,-524.41058122,0.00016437,2]
[363521654,1748751038783,-500.0,0.00016437,2]
[363521656,1748751038793,-500.0,0.00016437,2]
[363521658,1748751038802,-500.0,0.00016437,2]
[363521660,1748751038812,-500.0,0.00016437,2]
[363521662,1748751038821,-393.74572365,0.00016437,2]
[363521664,1748751038831,-207.97230543,0.00016437,2]
[363521666,1748751038840,-430.0,0.00016438,2]
[363521668,1748751038850,-388.56434652,0.00016438,2]
[363521670,1748751038859,-370.0,0.00016438,2]
[363521672,1748751038868,-430.0,0.00016438,2]
[363521674,1748751038879,-430.0,0.00016438,2]
[363521676,1748751038888,-430.0,0.00016438,2]
[363521678,1748751038898,-430.0,0.00016438,2]
[363521680,1748751038908,-432.09,0.00016438,2]
[363521682,1748751038917,-430.0,0.00016438,2]
[363521684,1748751038927,-567.38709909,0.00016438,2]
[363521687,1748751038945,-470.0,0.00016438,2]
[363521689,1748751038957,-430.0,0.00016438,2]
[363521692,1748751038968,-464.91109424,0.00016438,2]
[363521694,1748751038977,-430.0,0.00016438,2]
[363521696,1748751038987,-430.0,0.00016438,2]
[363521698,1748751038996,-400.0,0.00016438,2]
[363521700,1748751039006,-151.02126116,0.00016438,2]
[363521702,1748751039016,-430.0,0.00016438,2]
[363521704,1748751039025,-400.0,0.00016438,2]
[363521706,1748751039035,-430.0,0.00016438,2]
[363521708,1748751039045,-430.0,0.00016438,2]
[363521710,1748751039054,-437.06680584,0.00016438,2]
[363521712,1748751039064,-430.0,0.00016438,2]
[363521714,1748751039074,-430.0,0.00016438,2]
[363521716,1748751039084,-407.69743656,0.00016438,2]
[363521718,1748751039094,-430.0,0.00016438,2]
[363521720,1748751039104,-430.0,0.00016438,2]
[363521722,1748751039114,-430.0,0.00016438,2]
[363521724,1748751039124,-430.0,0.00016438,2]
[363521726,1748751039134,-430.0,0.00016438,2]
[363521728,1748751039144,-430.0,0.00016438,2]
[363521730,1748751039154,-430.0,0.00016438,2]
[363521732,1748751039164,-430.0,0.00016438,2]
[363521734,1748751039174,-430.0,0.00016438,2]
[363521737,1748751039186,-430.0,0.00016438,2]
[363521738,1748751039196,-430.0,0.00016438,2]
[363521741,1748751039206,-312.66794337,0.00016438,2]
[363521743,1748751039215,-430.0,0.00016438,2]
[363521745,1748751039227,-430.0,0.00016438,2]
[363521747,1748751039237,-430.0,0.00016438,2]
[363521749,1748751039246,-430.0,0.00016438,2]
[363521751,1748751039255,-430.0,0.00016438,2]
[363521753,1748751039266,-430.0,0.00016438,2]
[363521755,1748751039276,-430.0,0.00016438,2]
[363521757,1748751039285,-430.0,0.00016438,2]
[363521759,1748751039294,-430.0,0.00016438,2]
[363521761,1748751039304,-430.0,0.00016438,2]
[363521763,1748751039314,-430.0,0.00016438,2]
[363521765,1748751039328,-430.0,0.00016438,2]
[363521767,1748751039338,-430.0,0.00016438,2]
[363521769,1748751039348,-430.0,0.00016438,2]
[363521771,1748751039357,-430.0,0.00016438,2]
[363521773,1748751039367,-430.0,0.00016438,2]
[363521775,1748751039377,-430.0,0.00016438,2]
[363521777,1748751039386,-430.0,0.00016438,2]
[363521780,1748751039397,-430.0,0.00016438,2]
[363521781,1748751039406,-430.0,0.00016438,2]
[363521782,1748751039415,-227.74079175,0.00016438,2]
[363521783,1748751039425,-527.09,0.00016438,2]
[363521784,1748751039434,-430.0,0.00016438,2]
[363521785,1748751039444,-430.0,0.00016438,2]
[363521786,1748751039454,-1230.47,0.00016438,2]
[363521787,1748751039463,-430.0,0.00016438,2]
[363521788,1748751039473,-430.0,0.00016438,2]
[363521789,1748751039482,-509.21374089,0.00016438,2]
[363521790,1748751039491,-430.0,0.00016438,2]
[363521791,1748751039501,-430.0,0.00016438,2]
[363521792,1748751039510,-430.0,0.00016438,2]
[363521793,1748751039519,-279.10203048,0.00016438,2]
[363521794,1748751039529,-430.0,0.00016438,2]
[363521795,1748751039538,-430.0,0.00016438,2]
[363521796,1748751039551,-449.48,0.00016438,2]
[363521797,1748751039567,-430.0,0.00016438,2]
[363521798,1748751039580,-430.0,0.00016438,2]
[363521799,1748751039590,-173.34552926,0.00016438,2]
[363521800,1748751039599,-430.0,0.00016438,2]
[363521801,1748751039609,-430.0,0.00016438,2]
[363521802,1748751039619,-430.0,0.00016438,2]
[363521803,1748751039628,-430.0,0.00016438,2]
[363521804,1748751039641,-430.0,0.00016438,2]
[363521805,1748751039650,-430.0,0.00016438,2]
[363521806,1748751039660,-430.0,0.00016438,2]
[363521807,1748751039669,-430.0,0.00016438,2]
[363521809,1748751039679,-430.0,0.00016438,2]
[363521811,1748751039689,-450.12,0.00016438,2]
[363521813,1748751039698,-430.0,0.00016438,2]
[363521815,1748751039708,-430.0,0.00016438,2]
[363521817,1748751039719,-430.0,0.00016438,2]
[363521819,1748751039728,-430.0,0.00016438,2]
[363521821,1748751039738,-430.0,0.00016438,2]
[363521823,1748751039748,-430.0,0.00016438,2]
[363521825,1748751039758,-430.0,0.00016438,2]
[363521827,1748751039768,-430.0,0.00016438,2]
[363521829,1748751039778,-430.0,0.00016438,2]
[363521831,1748751039787,-430.0,0.00016438,2]
[363521833,1748751039797,-430.0,0.00016438,2]
[363521835,1748751039807,-430.0,0.00016438,2]
[363521837,1748751039817,-277.91428655,0.00016438,2]
[363521839,1748751039826,-430.0,0.00016438,2]
[363521841,1748751039836,-430.0,0.00016438,2]
[363521843,1748751039846,-430.0,0.00016438,2]
[363521846,1748751039856,-430.0,0.00016438,2]
[363521848,1748751039866,-430.0,0.00016438,2]
[363521850,1748751039880,-430.0,0.00016438,2]
[363521851,1748751039896,-430.0,0.00016438,2]
[363521853,1748751039906,-430.0,0.00016438,2]
[363521856,1748751039917,-430.0,0.00016438,2]
[363521858,1748751039927,-430.0,0.00016438,2]
[363521860,1748751039936,-430.0,0.00016438,2]
[363521862,1748751039946,-382.37949059,0.00016438,2]
[363521864,1748751039956,-430.0,0.00016438,2]
[363521866,1748751039966,-353.88630268,0.00016438,2]
[363521868,1748751039976,-430.0,0.00016438,2]
[363521870,1748751039985,-430.0,0.00016438,2]
[363521872,1748751039995,-633.42,0.00016438,2]
[363521874,1748751040005,-430.0,0.00016438,2]
[363521876,1748751040015,-430.0,0.00016438,2]
[363521878,1748751040025,-430.0,0.00016438,2]
[363521880,1748751040037,-430.0,0.00016438,2]
[363521882,1748751040047,-350.0,0.00016438,2]
[363521884,1748751040057,-530.78,0.00016438,2]
[363521886,1748751040067,-430.0,0.00016438,2]
[363521888,1748751040079,-170.7,0.00016438,2]
[363521890,1748751040089,-430.0,0.00016438,2]
[363521892,1748751040099,-430.0,0.00016438,2]
[363521894,1748751040108,-879.74,0.00016438,2]
[363521896,1748751040118,-430.0,0.00016438,2]
[363521898,1748751040127,-1688.1,0.00016438,2]
[363521901,1748751040137,-430.0,0.00016438,2]
[363521902,1748751040147,-430.0,0.00016438,2]
[363521904,1748751040158,-430.0,0.00016438,2]
[363521907,1748751040168,-900.98,0.00016438,2]
[363521908,1748751040177,-152.20266793,0.00016438,2]
[363521910,1748751040188,-1596.65,0.00016438,2]
[363521912,1748751040198,-430.0,0.00016438,2]
[363521915,1748751040208,-430.0,0.00016438,2]
[363521916,1748751040218,-430.0,0.00016438,2]
[363521918,1748751040227,-564.03512526,0.00016438,2]
[363521921,1748751040237,-430.0,0.00016438,2]
[363521923,1748751040247,-430.0,0.00016438,2]
[363521925,1748751040257,-430.0,0.00016438,2]
[363521929,1748751040267,-430.0,0.00016438,2]
[363521931,1748751040277,-430.0,0.00016438,2]
[363521933,1748751040287,-430.0,0.00016438,2]
[363521935,1748751040297,-430.0,0.00016438,2]
[363521937,1748751040307,-430.0,0.00016438,2]
[363521939,1748751040317,-430.0,0.00016438,2]
[363521941,1748751040327,-687.35,0.00016438,2]
[363521943,1748751040338,-430.0,0.00016438,2]
[363521945,1748751040348,-430.0,0.00016438,2]
[363521947,1748751040359,-474.25543598,0.00016438,2]
[363521949,1748751040370,-430.0,0.00016438,2]
[363521951,1748751040382,-246.46147107,0.00016438,2]
[363521953,1748751040393,-430.0,0.00016438,2]
[363521955,1748751040404,-161.0,0.00016438,3]
[363521957,1748751040414,-430.0,0.00016712,2]
[363521960,1748751040425,-430.0,0.00016712,2]
[363521962,1748751040435,-430.0,0.00016712,2]
[363521964,1748751040444,-430.0,0.00016712,2]
[363521966,1748751040454,-552.62742014,0.00016712,2]
[363521968,1748751040464,-430.0,0.00016712,2]
[363521970,1748751040473,-447.52431249,0.00016712,2]
[363521972,1748751040483,-430.0,0.00016712,2]
[363521974,1748751040492,-430.0,0.00016712,2]
[363521976,1748751040502,-430.0,0.00016712,2]
[363521978,1748751040512,-430.0,0.00016712,2]
[363521979,1748751040522,-559.20168232,0.00016712,2]
[363521982,1748751040532,-430.0,0.00016712,2]
[363521984,1748751040542,-527.09,0.00016712,2]
[363521986,1748751040552,-430.0,0.00016712,2]
[363521988,1748751040563,-1230.47,0.00016712,2]
[363521990,1748751040573,-430.0,0.00016712,2]
[363521992,1748751040583,-430.0,0.00016712,2]
[363521994,1748751040592,-430.0,0.00016712,2]
[363521996,1748751040602,-430.0,0.00016712,2]
[363521998,1748751040611,-430.0,0.00016712,2]
[363522000,1748751040621,-449.48,0.00016712,2]
[363522002,1748751040630,-430.0,0.00016712,2]
[363522004,1748751040643,-430.0,0.00016712,2]
[363522006,1748751040653,-430.0,0.00016712,2]
[363522008,1748751040663,-430.0,0.00016712,2]
[363522009,1748751040672,-430.0,0.00016712,2]
[363522010,1748751040683,-430.0,0.00016712,2]
[363522011,1748751040692,-430.0,0.00016712,2]
[363522012,1748751040701,-450.12,0.00016712,2]
[363522013,1748751040711,-430.0,0.00016712,2]
[363522014,1748751040722,-430.0,0.00016712,2]
[363522016,1748751040733,-430.0,0.00016712,2]
[363522018,1748751040742,-430.0,0.00016712,2]
[363522020,1748751040751,-465.0,0.00016712,2]
[363522022,1748751040761,-430.0,0.00016712,2]
[363522023,1748751040771,-430.0,0.00016712,2]
[363522025,1748751040780,-154.4213844,0.00016712,2]
[363522026,1748751040790,-430.0,0.00016712,2]
[363522027,1748751040799,-430.0,0.00016712,2]
[363522028,1748751040808,-430.0,0.00016712,2]
[363522029,1748751040817,-549.19495757,0.00016712,2]
[363522030,1748751040827,-430.0,0.00016712,2]
[363522031,1748751040837,-430.0,0.00016712,2]
[363522032,1748751040846,-286.4819188,0.00016712,2]
[363522033,1748751040855,-430.0,0.00016712,2]
[363522034,1748751040864,-633.42,0.00016712,2]
[363522035,1748751040874,-430.0,0.00016712,2]
[363522036,1748751040883,-430.0,0.00016712,2]
[363522037,1748751040892,-430.0,0.00016712,2]
[363522038,1748751040902,-530.78,0.00016712,2]
[363522039,1748751040911,-430.0,0.00016712,2]
[363522040,1748751040920,-474.95509405,0.00016712,2]
[363522041,1748751040930,-430.0,0.00016712,2]
[363522042,1748751040949,-879.74,0.00016712,2]
[363522043,1748751040958,-430.0,0.00016712,2]
[363522044,1748751040968,-1688.1,0.00016712,2]
[363522045,1748751040978,-410.53567467,0.00016712,2]
[363522046,1748751040987,-430.0,0.00016712,2]
[363522048,1748751040997,-430.0,0.00016712,2]
[363522050,1748751041007,-900.98,0.00016712,2]
[363522052,1748751041019,-1596.65,0.00016712,2]
[363522054,1748751041028,-529.12341231,0.00016712,2]
[363522056,1748751041038,-430.0,0.00016712,2]
[363522058,1748751041047,-430.0,0.00016712,2]
[363522060,1748751041057,-430.0,0.00016712,2]
[363522062,1748751041067,-430.0,0.00016712,2]
[363522064,1748751041076,-430.0,0.00016712,2]
[363522066,1748751041087,-430.0,0.00016712,2]
[363522068,1748751041096,-430.0,0.00016712,2]
[363522070,1748751041106,-430.0,0.00016712,2]
[363522072,1748751041116,-430.0,0.00016712,2]
[363522074,1748751041126,-687.35,0.00016712,2]
[363522077,1748751041136,-230.0,0.00016712,2]
[363522079,1748751041146,-430.0,0.00016712,2]
[363522081,1748751041155,-437.02708098,0.00016712,2]
[363522083,1748751041165,-430.0,0.00016712,2]
[363522085,1748751041175,-1060.12509813,0.000169,2]
[363522087,1748751041184,-204.0,0.00016961,2]
[363522089,1748751041194,-613.81,0.00016976,3]
[363522091,1748751041204,-306.9,0.00016976,3]
[363522093,1748751041214,-153.45,0.00016976,3]
[363522095,1748751041223,-460.4,0.00016976,3]
[363522118,1748751041398,-430.0,0.00016986,2]
[363522120,1748751041407,-430.0,0.00016986,2]
[363522122,1748751041415,-430.0,0.00016986,2]
[363522124,1748751041424,-573.05378082,0.00016986,2]
[363522126,1748751041433,-527.09,0.00016986,2]
[363522128,1748751041441,-430.0,0.00016986,2]
[363522131,1748751041450,-1230.47,0.00016986,2]
[363522133,1748751041458,-430.0,0.00016986,2]
[363522135,1748751041466,-430.0,0.00016986,2]
[363522137,1748751041474,-430.0,0.00016986,2]
[363522138,1748751041481,-430.0,0.00016986,2]
[363522140,1748751041490,-449.48,0.00016986,2]
[363522143,1748751041499,-430.0,0.00016986,2]
[363522145,1748751041509,-430.0,0.00016986,2]
[363522146,1748751041519,-430.0,0.00016986,2]
[363522149,1748751041529,-430.0,0.00016986,2]
[363522151,1748751041538,-430.0,0.00016986,2]
[363522153,1748751041550,-430.0,0.00016986,2]
[363522155,1748751041559,-450.12,0.00016986,2]
[363522157,1748751041569,-430.0,0.00016986,2]
[363522159,1748751041578,-430.0,0.00016986,2]
[363522160,1748751041587,-430.0,0.00016986,2]
[363522163,1748751041597,-430.0,0.00016986,2]
[363522165,1748751041607,-430.0,0.00016986,2]
[363522167,1748751041616,-430.0,0.00016986,2]
[363522169,1748751041626,-430.0,0.00016986,2]
[363522170,1748751041635,-430.0,0.00016986,2]
[363522173,1748751041648,-430.0,0.00016986,2]
[363522174,1748751041657,-430.0,0.00016986,2]
[363522177,1748751041667,-430.0,0.00016986,2]
[363522179,1748751041676,-430.0,0.00016986,2]
[363522181,1748751041687,-633.42,0.00016986,2]
[363522182,1748751041696,-430.0,0.00016986,2]